bitfinex-derivatives/quotes_ETHF0:USTF0_20250927
["timestamp","ask_amount","ask_price","bid_price","bid_amount"]
[1759007606694,3.2078,4014.3,4014.2,0.5305]
[1759007606895,3.20993643,4014.3,4014.2,0.75355348]
[1759007608597,3.20993643,4014.3,4014.2,5.75355348]
[1759007608904,3.2078,4014.9,4014.8,0.4322]
[1759007609091,3.2078,4014.9,4014.8,1.0006]
[1759007609292,3.2078,4015.4,4015.0,0.3372]
[1759007609497,3.2078,4015.4,4015.2,0.97854]
[1759007609701,3.2078,4015.4,4015.3,0.3194]
[1759007609997,3.21078024,4015.4,4015.3,0.3194]
[1759007610302,3.21078024,4015.4,4015.3,0.7516]
[1759007627010,3.21078024,4015.4,4015.3,0.3194]
[1759007627214,3.21078024,4015.4,4015.3,0.5694]
[1759007632426,3.71143204,4015.4,4015.3,0.5694]
[1759007635319,3.71143204,4015.4,4015.3,0.3194]
[1759007638628,0.44807,4015.0,4014.7,0.44809]
[1759007638830,0.44807,4015.0,4014.9,0.25]
[1759007639226,0.95095491,4015.0,4014.9,0.5819]
[1759007640138,0.95095491,4015.0,4014.9,0.8022]
[1759007640531,0.50288491,4015.0,4014.9,1.0182]
[1759007640734,0.44804,4015.3,4015.2,0.7682]
[1759007640925,0.95106827,4015.3,4015.2,0.7682]
[1759007644236,0.44804,4015.2,4015.1,0.3319]
[1759007644439,0.95106827,4015.2,4015.1,0.5522]
[1759007644924,0.95106827,4015.2,4015.1,0.7682]
[1759007645125,0.95106827,4015.2,4015.1,0.5522]
[1759007645832,0.95106827,4015.2,4015.1,0.7682]
[1759007647139,0.50302827,4015.2,4015.1,0.7682]
[1759007667362,0.50302827,4015.2,4015.1,1.0172]
[1759007670564,0.50302827,4015.2,4015.1,0.7682]
[1759007670762,0.50302827,4015.2,4015.1,1.0172]
[1759007705492,0.50302827,4015.2,4015.1,1.46525]
[1759007720710,0.50302827,4015.2,4015.1,0.7682]
[1759007720915,0.50302827,4015.2,4015.1,1.0172]
[1759007723319,0.50302827,4015.2,4015.1,1.46525]
[1759007723917,2.29350696,4015.2,4015.1,0.5522]
[1759007724113,0.50302827,4015.2,4015.1,0.5522]
[1759007724311,0.50302827,4015.2,4015.1,0.8012]
[1759007724519,5.50302827,4015.2,4015.1,0.3319]
[1759007724721,5.95107827,4015.2,4015.1,0.249]
[1759007725022,7.74155696,4015.2,4015.1,0.5623]
[1759007726317,2.74155696,4015.2,4015.1,0.5623]
[1759007732631,2.74155696,4015.2,4014.5,0.1261]
[1759007732632,2.29350696,4015.2,4014.7,0.97289]
[1759007732924,0.50302827,4015.1,4015.0,0.4487]
[1759007734623,0.50302827,4015.1,4015.0,0.8795]
[1759007737023,0.50302827,4015.1,4015.0,1.1285]
[1759007747930,0.95107827,4015.1,4015.0,1.1285]
[1759007749636,0.50302827,4015.1,4015.0,1.57656]
[1759007750026,0.50302827,4015.1,4015.0,1.1285]
[1759007750225,0.95107827,4015.1,4015.0,1.1285]
[1759007752732,0.50302827,4015.1,4015.0,1.57656]
[1759007753129,0.95107827,4015.1,4015.0,1.57656]
[1759007754022,0.95107827,4015.1,4015.0,1.1285]
[1759007756435,0.95086734,4015.1,4015.0,1.1285]
[1759007758539,2.3879612,4015.1,4015.0,1.1285]
[1759007760638,1.88514386,4015.1,4015.0,1.1285]
[1759007761325,2.38802178,4015.1,4015.0,1.1285]
[1759007761532,2.38802482,4015.1,4015.0,1.1285]
[1759007761927,2.38802482,4015.1,4015.0,0.8795]
[1759007762238,0.44809,4014.7,4014.6,0.3151]
[1759007762435,2.38806482,4014.7,4014.6,0.7773]
[1759007763337,2.38806482,4014.7,4014.6,0.5283]
[1759007763533,2.38806482,4014.7,4014.6,0.7773]
[1759007765545,1.93997482,4014.7,4014.6,0.7773]
[1759007765838,1.93997482,4014.7,4014.6,0.9861]
[1759007766040,1.93997482,4014.7,4014.6,0.7773]
[1759007766239,1.93997482,4014.7,4014.6,0.9861]
[1759007766439,1.93997482,4014.7,4014.6,0.7371]
[1759007766640,1.93997482,4014.7,4014.6,0.9861]
[1759007771749,1.93997482,4014.7,4014.6,0.7371]
[1759007771942,1.93997482,4014.7,4014.6,0.9861]
[1759007772948,1.93997482,4014.7,4014.6,0.7371]
[1759007773147,1.93997482,4014.7,4014.6,0.9861]
[1759007775749,1.93997482,4014.7,4014.6,0.7773]
[1759007777952,1.93997482,4014.7,4014.6,0.5283]
[1759007778144,1.93997482,4014.7,4014.6,0.7773]
[1759007778849,1.93997482,4014.7,4014.6,0.5283]
[1759007779046,1.93997482,4014.7,4014.6,0.7773]
[1759007781458,1.93997482,4014.7,4014.6,0.5283]
[1759007781650,6.93997482,4014.7,4014.3,0.3142]
[1759007781854,1.88522386,4014.4,4014.3,0.526]
[1759007782051,2.38810482,4014.4,4014.3,0.526]
[1759007789572,0.95101096,4014.4,4014.3,0.7331]
[1759007789762,2.38810482,4014.4,4014.3,0.7331]
[1759007790569,0.95101096,4014.4,4014.3,0.7331]
[1759007794075,0.95101096,4014.4,4014.3,0.5278]
[1759007795570,0.95101096,4014.4,4014.3,0.3142]
[1759007799384,4.15881096,4014.4,4014.3,0.3142]
[1759007802580,4.15716249,4014.4,4014.3,0.3142]
[1759007810287,4.15716249,4014.4,4014.3,0.3327]
[1759007815790,4.15716249,4014.4,4014.3,0.5463]
[1759007816290,4.15716249,4014.4,4014.3,0.3327]
[1759007818696,5.94897975,4014.4,4014.3,0.3327]
[1759007821596,5.94858103,4014.4,4014.3,0.3327]
[1759007829704,5.94858103,4014.4,4014.2,0.32095348]
[1759007829705,0.44814,4014.3,4014.2,0.32095348]
[1759007829905,1.19797377,4014.3,4014.2,0.00195348]
[1759007830402,1.19797377,4014.3,4014.2,0.32095348]
[1759007830797,2.98979103,4014.3,4014.2,0.32095348]
[1759007832404,2.98979103,4014.3,4014.2,0.53195348]
[1759007834098,2.98979103,4014.3,4014.2,0.00195348]
[1759007834299,0.44816,4014.1,4014.0,0.4451]
[1759007834604,1.21902,4013.6,4013.5,0.5517]
[1759007834802,1.71985377,4013.6,4013.5,0.5517]
[1759007835201,1.71985377,4013.6,4013.5,0.55422146]
[1759007836606,1.71985377,4013.6,4013.5,0.87322146]
[1759007843199,1.71985377,4013.6,4013.5,0.32152146]
[1759007843402,1.17247,4013.1,4013.0,0.9175]
[1759007843607,1.67330377,4013.1,4013.0,1.0905]
[1759007844010,1.67330377,4013.1,4013.0,0.5592]
[1759007844311,1.17253,4012.6,4012.5,0.935]
[1759007844512,1.67336377,4012.6,4012.5,0.93679816]
[1759007844714,1.67336377,4012.6,4012.5,1.16299816]
[1759007845016,1.67336377,4012.6,4012.5,0.91399816]
[1759007845320,1.67336377,4012.6,4012.5,0.34059816]
[1759007845813,1.67336377,4012.6,4012.5,0.56099816]
[1759007846111,1.67336377,4012.6,4012.5,0.00179816]
[1759007846910,0.4144,4011.8,4011.7,0.3174]
[1759007847106,0.7242,4011.8,4011.7,0.3174]
[1759007847410,0.7242,4011.8,4011.7,0.2204]
[1759007847411,1.22357769,4011.8,4011.7,0.2204]
[1759007847612,1.67199769,4011.8,4011.7,0.5592]
[1759007847815,1.67427129,4011.8,4011.7,0.5592]
[1759007848007,3.46608855,4011.8,4011.7,0.00212745]
[1759007848220,3.46608855,4011.8,4011.7,0.34092745]
[1759007848414,3.46608855,4011.8,4011.7,0.00212745]
[1759007848816,3.46608855,4011.8,4011.7,0.34092745]
[1759007850114,3.46608855,4011.8,4011.7,0.56132745]
[1759007851221,3.46608855,4011.8,4011.7,0.34092745]
[1759007852323,3.46608855,4011.8,4011.7,0.00212745]
[1759007852927,3.46608855,4011.8,4011.7,0.34092745]
[1759007854122,3.46608855,4011.8,4011.7,0.56132745]
[1759007857028,2.96671086,4011.8,4011.7,0.56132745]
[1759007859629,2.96671086,4011.8,4011.7,0.34092745]
[1759007860730,2.96671086,4011.8,4011.7,0.00212745]
[1759007861030,2.96671086,4011.8,4011.7,0.34092745]
[1759007865936,2.96671086,4011.8,4011.7,0.56132745]
[1759007867234,3.4647838,4011.8,4011.7,0.56132745]
[1759007867731,3.4647838,4011.8,4011.7,0.78752745]
[1759007869236,3.4647838,4011.8,4011.7,0.56132745]
[1759007874640,3.4647838,4011.8,4011.7,0.34092745]
[1759007875841,3.4647838,4011.8,4011.7,0.00212745]
[1759007880541,3.11261595,4011.8,4011.7,0.00212745]
[1759007881241,3.11261595,4011.8,4011.7,0.32562745]
[1759007882547,3.11261595,4011.8,4011.7,0.00212745]
[1759007887050,3.11261595,4011.8,4011.7,0.32562745]
[1759007892858,0.94876654,4011.8,4011.7,5.77012745]
[1759007893058,0.94876654,4011.8,4011.7,6.01912745]
[1759007897247,0.0022736,4011.8,4011.7,6.01912745]
[1759007911968,0.0022736,4011.8,4011.7,9.22692745]
[1759007915173,0.0022736,4011.8,4011.7,9.67532745]
[1759007919470,0.0022736,4011.8,4011.7,4.67532745]
[1759007922675,0.44831,4012.6,4012.3,0.4214]
[1759007922875,0.65601,4012.6,4012.5,0.8723]
[1759007923079,1.15684702,4012.6,4012.5,0.8723]
[1759007923679,1.15923659,4012.6,4012.5,0.8723]
[1759007923883,1.71993659,4012.6,4012.5,0.8723]
[1759007926685,1.27162659,4012.6,4012.5,0.8723]
[1759007926883,0.71092659,4012.6,4012.5,0.8723]
[1759007927482,0.50322659,4012.6,4012.5,2.76026941]
[1759007927682,0.00238957,4012.6,4012.5,2.76026941]
[1759007942596,0.75958957,4012.6,4012.5,1.32062]
[1759007942802,0.75958957,4012.6,4012.5,1.56962]
[1759007947703,0.75958957,4012.6,4012.5,0.8723]
[1759007947910,0.4353,4012.4,4012.3,0.3156]
[1759007948100,0.7572,4012.4,4012.3,0.7852]
[1759007948305,0.7572,4012.4,4012.3,1.23355]
[1759007948500,0.00238957,4012.6,4012.3,1.23355]
[1759007948501,0.00238957,4012.6,4012.5,1.32973]
[1759007948800,0.00238957,4012.6,4012.5,1.57873]
[1759007957518,0.50335323,4012.6,4012.5,1.57873]
[1759007960724,0.50335323,4012.6,4012.5,4.78653]
[1759007962217,0.00238957,4012.6,4012.5,4.78653]
[1759007962419,0.50336998,4012.6,4012.5,4.78653]
[1759007964923,0.71286998,4012.6,4012.5,4.78653]
[1759007966027,0.50336998,4012.6,4012.5,4.78653]
[1759007971227,0.70816998,4012.6,4012.5,4.78653]
[1759007972934,0.70816998,4012.6,4012.5,4.53753]
[1759007973127,0.70816998,4012.6,4012.5,4.78653]
[1759007974130,0.70816998,4012.6,4012.5,4.53753]
[1759007974434,1.24136998,4012.6,4012.5,4.78653]
[1759007976037,0.92176998,4012.6,4012.5,4.78653]
[1759007977836,0.92176998,4012.6,4012.5,1.57873]
[1759007979335,0.50336998,4012.6,4012.5,1.57873]
[1759007979535,0.50336998,4012.6,4012.5,3.37158095]
[1759007981649,0.50336998,4012.6,4012.5,3.12258095]
[1759007981944,0.50336998,4012.6,4012.5,3.37158095]
[1759007983145,0.50336998,4012.6,4012.5,6.57938095]
[1759007986146,0.50336998,4012.6,4012.5,4.78653]
[1759007986444,0.50336998,4012.6,4012.5,6.57938095]
[1759007991650,0.00238957,4012.6,4012.5,7.91603932]
[1759007996153,0.00238957,4012.6,4012.5,6.57938095]
[1759007997453,0.00238957,4012.6,4012.5,7.91603932]
[1759008004557,0.00238957,4012.6,4012.5,7.56152616]
[1759008009959,0.00238957,4012.6,4012.5,6.22486779]
[1759008011054,0.00238957,4012.6,4012.5,5.97586779]
[1759008011360,0.00238957,4012.6,4012.5,6.22486779]
[1759008013366,0.00238957,4012.6,4012.5,7.56152616]
[1759008014866,0.21098957,4012.6,4012.5,7.56152616]
[1759008015463,0.00238957,4012.6,4012.5,7.56152616]
[1759008022172,0.21098957,4012.6,4012.5,5.87418837]
[1759008022370,0.71282663,4012.6,4012.5,7.56152616]
[1759008022576,0.50422663,4012.6,4012.5,7.56152616]
[1759008027479,0.00238957,4012.6,4012.5,7.56152616]
[1759008033283,0.00238957,4012.6,4012.5,6.12318837]
[1759008033581,0.00238957,4012.6,4012.5,7.56152616]
[1759008037484,0.50424161,4012.6,4012.5,7.56152616]
[1759008042286,0.00238957,4012.6,4012.5,7.56152616]
[1759008042788,0.4402,4013.6,4013.5,1.13362]
[1759008042985,0.9420317,4013.6,4013.5,1.59532]
[1759008043385,1.2807317,4013.6,4013.5,1.59532]
[1759008043885,1.28359568,4013.6,4013.5,1.59532]
[1759008045484,2.72193347,4013.6,4013.5,1.59532]
[1759008046790,2.72193347,4013.6,4013.5,1.79584846]
[1759008047089,2.72193347,4013.6,4013.5,1.59532]
[1759008050093,2.72193347,4013.6,4013.5,1.1471]
[1759008053797,3.17014347,4013.6,4013.5,1.1471]
[1759008060507,0.95290568,4013.6,4013.5,1.1471]
[1759008060702,3.12184347,4013.6,4013.5,1.1471]
[1759008061801,3.12184347,4013.6,4013.5,1.0141]
[1759008064503,3.12184347,4013.6,4013.5,1.139]
[1759008064707,1.68350568,4013.6,4013.5,1.139]
[1759008070219,0.91689568,4013.6,4013.5,1.139]
[1759008070419,0.50469568,4013.6,4013.5,1.139]
[1759008071416,0.50469568,4013.6,4013.5,4.3468]
[1759008080131,0.71329568,4013.6,4013.5,4.3468]
[1759008081031,1.25039568,4013.6,4013.5,4.3468]
[1759008082327,0.92279568,4013.6,4013.5,4.3468]
[1759008082933,0.92279568,4013.6,4013.5,1.139]
[1759008083125,0.92279568,4013.6,4013.5,4.3468]
[1759008084840,0.92279568,4013.6,4013.5,4.0978]
[1759008085029,0.92279568,4013.6,4013.5,4.3468]
[1759008085534,0.92279568,4013.6,4013.5,1.139]
[1759008085738,0.92279568,4013.6,4013.5,4.3468]
[1759008085930,0.71329568,4013.6,4013.5,4.3468]
[1759008086233,0.50469568,4013.6,4013.5,4.3468]
[1759008087036,0.50469568,4013.6,4013.5,1.139]
[1759008087230,0.50469568,4013.6,4013.5,4.3468]
[1759008092437,0.95290568,4013.6,4013.5,4.3468]
[1759008093240,0.95290568,4013.6,4013.5,1.139]
[1759008096136,1.17370568,4013.6,4013.5,1.139]
[1759008102637,1.17370568,4013.6,4013.5,1.0141]
[1759008102638,1.72580568,4013.6,4013.5,1.0141]
[1759008103338,1.72580568,4013.6,4013.5,0.7884]
[1759008105544,1.72580568,4013.6,4013.5,0.5394]
[1759008105841,1.72580568,4013.6,4013.5,0.7884]
[1759008106344,1.72580568,4013.6,4013.5,1.1247]
[1759008106534,1.38720568,4013.6,4013.5,1.1247]
[1759008107142,1.72580568,4013.6,4013.5,1.1247]
[1759008108835,1.72580568,4013.6,4013.5,0.9938]
[1759008109144,1.72580568,4013.6,4013.5,0.5394]
[1759008109335,1.72580568,4013.6,4013.5,0.7884]
[1759008111047,1.72580568,4013.6,4013.5,0.6703]
[1759008111246,1.72580568,4013.6,4013.5,0.9193]
[1759008112439,1.72580568,4013.6,4013.5,0.6703]
[1759008112641,1.72580568,4013.6,4013.5,0.9193]
[1759008113038,1.72580568,4013.6,4013.5,0.6703]
[1759008113246,1.72580568,4013.6,4013.5,0.9193]
[1759008113746,1.72580568,4013.6,4013.5,0.7884]
[1759008115148,1.72580568,4013.6,4013.5,0.5394]
[1759008115343,1.72580568,4013.6,4013.5,0.7884]
[1759008115748,1.72580568,4013.6,4013.5,0.5394]
[1759008115954,1.72580568,4013.6,4013.5,0.7884]
[1759008117051,0.88223,4013.4,4013.3,3.5156]
[1759008117348,1.7222617,4013.4,4013.3,3.9744]
[1759008118040,1.7222617,4013.4,4013.3,3.7254]
[1759008118242,1.7222617,4013.4,4013.3,3.9744]
[1759008120549,1.7222617,4013.4,4013.3,4.1828]
[1759008122446,1.7222617,4013.4,4013.3,3.9744]
[1759008122653,0.434,4012.9,4012.8,3.4176]
[1759008122849,1.22049,4012.9,4012.8,3.875]
[1759008123151,1.7223217,4012.9,4012.8,4.1828]
[1759008123654,1.3841217,4012.9,4012.8,4.1828]
[1759008123852,1.1604217,4012.9,4012.8,4.1828]
[1759008124251,0.9501217,4012.9,4012.8,4.1828]
[1759008124453,0.5018317,4012.9,4012.8,5.97490637]
[1759008124644,0.5018317,4012.9,4012.8,5.62076855]
[1759008126457,0.44826,4013.2,4013.1,0.726]
[1759008126754,0.9495841,4013.2,4013.1,2.41296855]
[1759008126955,0.5013241,4013.2,4013.1,2.86123855]
[1759008130053,0.45107398,4013.6,4013.5,0.8575]
[1759008130256,0.45107398,4013.6,4013.5,1.1065]
[1759008130857,0.95230377,4013.6,4013.5,1.1065]
[1759008131259,1.70210377,4013.6,4013.5,1.1065]
[1759008131446,1.70210377,4013.6,4013.5,0.8575]
[1759008131765,1.70210377,4013.6,4013.5,1.1065]
[1759008132463,1.70210377,4013.6,4013.5,0.8575]
[1759008132757,1.70210377,4013.6,4013.5,1.1065]
[1759008133658,1.70210377,4013.6,4013.5,0.8575]
[1759008133860,3.14007232,4013.6,4013.5,1.1065]
[1759008134157,3.14007232,4013.6,4013.5,0.7753]
[1759008141267,3.14011647,4013.6,4013.5,0.7753]
[1759008142067,3.14011647,4013.6,4013.5,0.5263]
[1759008142363,3.14011647,4013.6,4013.5,0.7753]
[1759008143362,3.14011647,4013.6,4013.5,0.5644]
[1759008143668,1.21173,4013.4,4013.3,3.5385]
[1759008143868,1.71300394,4013.4,4013.3,3.7875]
[1759008145167,1.71300394,4013.4,4013.3,4.011]
[1759008146572,1.71300394,4013.4,4013.3,4.2354]
[1759008147072,1.71300394,4013.4,4013.3,1.0276]
[1759008149161,1.71300394,4013.4,4013.3,0.7786]
[1759008149472,1.71300394,4013.4,4013.3,0.8032]
[1759008152367,1.71300394,4013.4,4013.3,0.5542]
[1759008152673,1.71300394,4013.4,4013.3,0.8032]
[1759008153275,1.71300394,4013.4,4013.3,0.5797]
[1759008159877,1.71300394,4013.4,4013.3,0.8032]
[1759008175879,1.71300394,4013.4,4013.0,0.1339]
[1759008175880,0.44827,4013.1,4013.0,0.1339]
[1759008176079,0.4487,4012.9,4012.8,3.4295]
[1759008176280,1.72276394,4012.9,4012.8,3.4295]
[1759008176588,1.72276394,4012.9,4012.8,3.7494]
[1759008179983,1.39826394,4012.9,4012.8,3.9701]
[1759008181885,1.72276394,4012.9,4012.8,3.9701]
[1759008182284,1.39826394,4012.9,4012.8,3.9701]
[1759008184288,1.39826394,4012.9,4012.8,0.7623]
[1759008184984,1.72276394,4012.9,4012.8,1.0113]
[1759008185286,1.39826394,4012.9,4012.8,1.0113]
[1759008188181,1.17656394,4012.9,4012.8,1.0113]
[1759008188388,0.94956394,4012.9,4012.8,1.0113]
[1759008188582,1.17656394,4012.9,4012.8,1.0113]
[1759008188780,0.72827394,4012.9,4012.8,1.0113]
[1759008188982,0.50127394,4012.9,4012.8,1.0113]
[1759008189178,0.44827,4013.2,4013.1,0.7342]
[1759008189489,0.94895337,4013.2,4013.1,0.9832]
[1759008192086,1.16305337,4013.2,4013.1,0.9832]
[1759008193688,0.71478337,4013.2,4013.1,0.9832]
[1759008201299,1.16303337,4013.2,4013.1,0.9832]
[1759008209092,0.50068337,4013.2,4013.1,1.43147]
[1759008218000,0.50068337,4013.2,4013.1,4.63927]
[1759008233921,0.50068337,4013.2,4013.1,1.43147]
[1759008234217,0.50068337,4013.2,4013.1,4.63927]
[1759008244518,0.50068337,4013.2,4013.1,6.07729164]
[1759008247025,0.22416398,4013.6,4013.5,0.5656]
[1759008247223,1.17440688,4013.6,4013.5,1.1512]
[1759008248525,0.72619688,4013.6,4013.5,1.1512]
[1759008250727,0.50489688,4013.6,4013.5,1.1512]
[1759008254830,0.71229688,4013.6,4013.5,1.1512]
[1759008257832,0.71229688,4013.6,4013.5,1.59942]
[1759008258132,1.16050688,4013.6,4013.5,1.1512]
[1759008258527,1.16050688,4013.6,4013.5,1.59942]
[1759008259335,0.71229688,4013.6,4013.5,1.59942]
[1759008263632,0.21026398,4013.6,4013.5,1.59942]
[1759008263841,0.71209268,4013.6,4013.5,1.59942]
[1759008278642,0.71245486,4013.6,4013.5,1.59942]
[1759008280145,1.16066486,4013.6,4013.5,1.1512]
[1759008282442,1.36576486,4013.6,4013.5,0.9022]
[1759008282648,1.36576486,4013.6,4013.2,0.3251]
[1759008282649,0.7283,4013.3,4013.2,0.3251]
[1759008282847,2.66851252,4013.3,4013.2,0.5741]
[1759008284252,0.7283,4013.1,4013.0,0.3251]
[1759008284451,1.23049088,4013.1,4013.0,0.5741]
[1759008284749,1.23049088,4013.1,4013.0,0.7945]
[1759008285854,1.23049088,4013.1,4013.0,1.146]
[1759008286953,0.91269088,4013.1,4013.0,1.146]
[1759008297161,0.91269088,4013.1,4013.0,1.59428]
[1759008301963,1.25119088,4013.1,4013.0,1.59428]
[1759008303863,0.91269088,4013.1,4013.0,1.59428]
[1759008307861,1.25119088,4013.1,4013.0,1.59428]
[1759008308058,0.91269088,4013.1,4013.0,1.59428]
[1759008308565,0.70759088,4013.1,4013.0,1.59428]
[1759008312765,1.23509088,4013.1,4013.0,1.59428]
[1759008315074,0.92319088,4013.1,4013.0,1.59428]
[1759008315369,0.50219088,4013.1,4013.0,2.93504321]
[1759008315567,0.50219088,4013.1,4013.0,4.72722987]
[1759008315770,0.00286398,4013.6,4013.5,1.02482]
[1759008315968,0.00286398,4013.6,4013.5,1.58272]
[1759008324872,0.00286398,4013.6,4013.5,1.1345]
[1759008325179,0.66647398,4013.6,4013.5,1.1345]
[1759008326073,0.87517398,4013.6,4013.5,1.1345]
[1759008326278,1.21447398,4013.6,4013.5,1.1345]
[1759008327679,1.71557127,4013.6,4013.5,1.1345]
[1759008331079,1.71557127,4013.6,4013.5,0.8845]
[1759008331280,1.71557127,4013.6,4013.5,1.1345]
[1759008338590,1.71557127,4013.6,4013.5,0.3079]
[1759008338796,0.7634,4013.1,4013.0,0.5536]
[1759008339082,1.26449729,4013.1,4013.0,0.8036]
[1759008339290,0.92519729,4013.1,4013.0,1.1424]
[1759008340190,1.26449729,4013.1,4013.0,1.1424]
[1759008343194,1.26449729,4013.1,4013.0,0.8924]
[1759008343385,1.26449729,4013.1,4013.0,0.5538]
[1759008343585,1.26449729,4013.1,4013.0,0.5888]
[1759008344084,1.26449729,4013.1,4013.0,0.8038]
[1759008346995,1.26449729,4013.1,4013.0,1.1446]
[1759008350493,1.26449729,4013.1,4013.0,0.8038]
[1759008350900,1.26449729,4013.1,4013.0,0.5538]
[1759008351104,1.26449729,4013.1,4013.0,0.8038]
[1759008351903,1.26449729,4013.1,4013.0,0.5538]
[1759008352102,1.26449729,4013.1,4013.0,0.8038]
[1759008352397,1.26449729,4013.1,4013.0,0.5888]
[1759008353291,1.26449729,4013.1,4013.0,0.8038]
[1759008355402,1.26449729,4013.1,4013.0,0.5538]
[1759008355599,1.26449729,4013.1,4013.0,0.8038]
[1759008355803,1.26449729,4013.1,4013.0,0.3388]
[1759008355999,1.26449729,4013.1,4013.0,0.5795]
[1759008357095,0.7664,4012.4,4012.3,3.7641]
[1759008357300,0.92709415,4012.4,4012.3,4.2399]
[1759008357501,0.50139415,4012.4,4012.3,4.2399]
[1759008360509,0.71029415,4012.4,4012.3,4.2399]
[1759008361410,0.2089,4012.4,4012.3,4.2399]
[1759008362003,0.71002008,4012.4,4012.3,4.2399]
[1759008363211,0.2089,4012.4,4012.3,4.2399]
[1759008364512,0.70992198,4012.4,4012.3,4.2399]
[1759008365012,0.70992198,4012.4,4012.3,1.0321]
[1759008366709,0.70992198,4012.4,4012.3,0.7821]
[1759008366905,0.70992198,4012.4,4012.3,1.0321]
[1759008369609,0.44834,4012.5,4012.4,0.7722]
[1759008369814,0.94933067,4012.5,4012.4,0.7722]
[1759008372622,0.50099067,4012.5,4012.4,0.7722]
[1759008373711,0.44832,4012.7,4012.5,0.4703]
[1759008373916,0.44832,4012.7,4012.6,1.0222]
[1759008374108,0.94933724,4012.7,4012.6,1.0222]
[1759008379822,1.15863724,4012.7,4012.6,1.0222]
[1759008380121,1.68803724,4012.7,4012.6,1.0222]
[1759008381025,1.37423724,4012.7,4012.6,1.0222]
[1759008386728,1.69243724,4012.7,4012.6,1.0222]
[1759008388630,1.69243724,4012.7,4012.6,1.47053]
[1759008389831,1.24411724,4012.7,4012.6,1.47053]
[1759008393436,1.37422724,4012.7,4012.5,0.44834]
[1759008393642,0.87321,4012.7,4012.5,0.44834]
[1759008393844,0.93990948,4012.6,4012.5,0.77084]
[1759008394143,1.25810948,4012.6,4012.5,1.22764]
[1759008394644,1.25810948,4012.6,4012.5,0.7793]
[1759008395737,1.25810948,4012.6,4012.5,0.5303]
[1759008395942,1.25810948,4012.6,4012.5,1.22764]
[1759008397042,1.25810948,4012.6,4012.5,1.35534]
[1759008398447,1.25810948,4012.6,4012.5,0.907]
[1759008398847,1.25810948,4012.6,4012.5,0.658]
[1759008399045,1.25810948,4012.6,4012.5,0.907]
[1759008399646,1.25810948,4012.6,4012.5,0.7793]
[1759008401145,1.25810948,4012.6,4012.5,0.907]
[1759008402848,1.25810948,4012.6,4012.5,0.658]
[1759008403052,1.25810948,4012.6,4012.5,0.907]
[1759008404148,1.25810948,4012.6,4012.5,0.658]
[1759008404348,1.25810948,4012.6,4012.5,0.907]
[1759008404549,1.25810948,4012.6,4012.5,1.1134]
[1759008405450,1.25810948,4012.6,4012.5,1.56174]
[1759008407147,0.93990948,4012.6,4012.5,1.56174]
[1759008407348,1.25810948,4012.6,4012.5,1.56174]
[1759008407552,1.25810948,4012.6,4012.3,3.2078]
[1759008407553,0.4382,4012.4,4012.3,3.2078]
[1759008407757,2.69693099,4012.4,4012.3,3.2078]
[1759008408057,0.4382,4012.0,4011.8,0.47869508]
[1759008408246,0.4382,4012.0,4011.9,0.5715]
[1759008408443,0.94020739,4012.0,4011.9,0.7793]
[1759008408649,1.25840739,4012.0,4011.9,0.7793]
[1759008408853,1.25840739,4012.0,4011.9,0.5303]
[1759008409055,1.25840739,4012.0,4011.9,0.7793]
[1759008411151,1.25840739,4012.0,4011.9,0.5303]
[1759008411353,1.25840739,4012.0,4011.9,0.7793]
[1759008413254,1.25840739,4012.0,4011.9,0.3225]
[1759008413455,1.25840739,4012.0,4011.9,0.5715]
[1759008413653,1.25840739,4012.0,4011.9,0.3225]
[1759008413959,1.25840739,4012.0,4011.9,0.7924]
[1759008414658,1.25840739,4012.0,4011.9,1.0064]
[1759008415252,0.4382,4012.0,4011.9,1.0064]
[1759008415855,0.44838,4012.1,4011.9,1.4548]
[1759008416050,0.44838,4012.1,4012.0,0.894]
[1759008416457,0.95034645,4012.1,4012.0,0.894]
[1759008417559,0.95034645,4012.1,4012.0,1.143]
[1759008417862,1.16484645,4012.1,4012.0,1.143]
[1759008418063,0.71646645,4012.1,4012.0,1.143]
[1759008422962,0.2145,4012.1,4012.0,1.143]
[1759008423164,0.71645725,4012.1,4012.0,1.143]
[1759008424066,1.05145725,4012.1,4012.0,1.143]
[1759008425772,1.25995725,4012.1,4012.0,1.143]
[1759008429369,1.70833725,4012.1,4012.0,1.143]
[1759008431177,1.70833725,4012.1,4012.0,1.01]
[1759008433977,1.70833725,4012.1,4012.0,0.761]
[1759008434173,1.70833725,4012.1,4012.0,1.01]
[1759008434377,1.70833725,4012.1,4011.7,0.22302745]
[1759008434378,1.22181,4011.8,4011.7,0.22302745]
[1759008434577,1.72376725,4011.8,4011.7,0.00212745]
[1759008434767,1.72376725,4011.8,4011.7,0.25112745]
[1759008435171,1.72376725,4011.8,4011.7,0.56492745]
[1759008435373,1.72376725,4011.8,4011.7,0.00212745]
[1759008437178,0.44848,4011.2,4011.1,0.3138]
[1759008437374,1.22188,4011.2,4011.1,0.5347]
[1759008437574,1.72383725,4011.2,4011.1,0.5347]
[1759008438177,1.72383725,4011.2,4011.1,0.5377644]
[1759008439474,1.72383725,4011.2,4011.1,0.3168644]
[1759008447185,1.22188,4011.2,4011.1,0.3168644]
[1759008452183,0.44848,4011.2,4011.1,0.7496644]
[1759008452579,0.65778,4011.2,4011.1,0.7496644]
[1759008453384,1.12113,4011.6,4011.5,0.8796]
[1759008453385,0.2093,4011.6,4011.5,0.8796]
[1759008453578,0.71086659,4011.6,4011.5,0.8796]
[1759008453983,0.71086659,4011.6,4011.5,1.1286]
[1759008454185,1.15930659,4011.6,4011.5,1.1286]
[1759008454692,1.69830659,4011.6,4011.5,1.1286]
[1759008462395,1.69830659,4011.6,4011.5,0.249]
[1759008462701,1.19678,4011.2,4011.1,0.7855644]
[1759008462900,1.69834659,4011.2,4011.1,1.0023644]
[1759008469907,1.37294659,4011.2,4011.1,1.0023644]
[1759008476214,1.15934659,4011.2,4011.1,1.0023644]
[1759008483621,1.68594659,4011.2,4011.1,1.0023644]
[1759008485622,1.36714659,4011.2,4011.1,1.0023644]
[1759008487122,1.68594659,4011.2,4011.1,1.0023644]
[1759008490727,1.36714659,4011.2,4011.1,1.0023644]
[1759008491627,0.91866659,4011.2,4011.1,1.4508544]
[1759008491825,1.12105,4011.8,4011.1,1.4508544]